[Event "*** Titled Tuesday Blitz"]
[Site "Chess.com"]
[Date "2020.10.27"]
[Round "4"]
[White "Rodalquilar"]
[Black "VladimirBelous"]
[Result "1/2-1/2"]
[WhiteElo "2754"]
[BlackElo "2845"]
[TimeControl "180+1"]
[EndTime "10:41:04 PDT"]
[Termination "Game drawn - insufficient material"]

1. d4 {[%clk 0:03:00.9]} 1... Nf6 {[%clk 0:02:58.7]} 2. Bf4 {[%clk 0:03:00.8]}
2... d6 {[%clk 0:02:54.4]} 3. Nc3 {[%clk 0:03:00.2]} 3... Bf5 {[%clk 0:02:51.9]}
4. f3 {[%clk 0:03:00.2]} 4... d5 {[%clk 0:02:34.9]} 5. g4 {[%clk 0:02:59.8]}
5... Bg6 {[%clk 0:02:28.4]} 6. h4 {[%clk 0:02:59.9]} 6... h6 {[%clk 0:02:25.3]}
7. h5 {[%clk 0:02:50.3]} 7... Bh7 {[%clk 0:02:24.2]} 8. e3 {[%clk 0:02:50.9]}
8... a6 {[%clk 0:02:16.7]} 9. Bd3 {[%clk 0:02:47]} 9... Bxd3 {[%clk 0:02:15.7]}
10. Qxd3 {[%clk 0:02:44.6]} 10... Nbd7 {[%clk 0:02:16.6]} 11. O-O-O {[%clk
0:02:37.3]} 11... c5 {[%clk 0:02:12.8]} 12. e4 {[%clk 0:02:05.9]} 12... dxe4
{[%clk 0:01:34.2]} 13. Nxe4 {[%clk 0:02:05.2]} 13... Nxe4 {[%clk 0:01:25.5]} 14.
Qxe4 {[%clk 0:02:05]} 14... e6 {[%clk 0:01:13.8]} 15. Qxb7 {[%clk 0:01:54.6]}
15... Qc8 {[%clk 0:01:03.7]} 16. Qxc8+ {[%clk 0:01:33.7]} 16... Rxc8 {[%clk
0:01:04.6]} 17. d5 {[%clk 0:01:33.7]} 17... e5 {[%clk 0:00:55.1]} 18. Be3 {[%clk
0:01:33.9]} 18... c4 {[%clk 0:00:55.9]} 19. Ne2 {[%clk 0:01:29.3]} 19... f6
{[%clk 0:00:51.4]} 20. Ng3 {[%clk 0:01:24.9]} 20... c3 {[%clk 0:00:48.8]} 21. b3
{[%clk 0:01:16.7]} 21... Ba3+ {[%clk 0:00:48.4]} 22. Kb1 {[%clk 0:01:16.4]}
22... Kf7 {[%clk 0:00:48.7]} 23. Ne4 {[%clk 0:01:09.6]} 23... Rhd8 {[%clk
0:00:49.2]} 24. Bc1 {[%clk 0:01:09.2]} 24... Bb4 {[%clk 0:00:42.3]} 25. a3
{[%clk 0:01:05.7]} 25... Bf8 {[%clk 0:00:42.9]} 26. Rd3 {[%clk 0:00:53.8]} 26...
Nc5 {[%clk 0:00:26.6]} 27. Rxc3 {[%clk 0:00:53.1]} 27... Rxd5 {[%clk 0:00:25.9]}
28. b4 {[%clk 0:00:46.1]} 28... Rb8 {[%clk 0:00:26.1]} 29. Nxc5 {[%clk 0:00:27]}
29... Bxc5 {[%clk 0:00:26.2]} 30. Be3 {[%clk 0:00:26.3]} 30... Bxe3 {[%clk
0:00:19.9]} 31. Rxe3 {[%clk 0:00:27.2]} 31... a5 {[%clk 0:00:20.5]} 32. Rb3
{[%clk 0:00:12.8]} 32... Rd4 {[%clk 0:00:19.9]} 33. b5 {[%clk 0:00:06.3]} 33...
a4 {[%clk 0:00:19.1]} 34. Rb2 {[%clk 0:00:06.7]} 34... Rc4 {[%clk 0:00:19.1]}
35. Rd1 {[%clk 0:00:06.4]} 35... Rb7 {[%clk 0:00:15.3]} 36. Rd6 {[%clk
0:00:06.1]} 36... Rc3 {[%clk 0:00:14.8]} 37. b6 {[%clk 0:00:04.7]} 37... Ke7
{[%clk 0:00:14.8]} 38. Rd3 {[%clk 0:00:03.3]} 38... Rc6 {[%clk 0:00:14.4]} 39.
f4 {[%clk 0:00:01.8]} 39... Rcxb6 {[%clk 0:00:13.9]} 40. Rxb6 {[%clk 0:00:01.7]}
40... Rxb6+ {[%clk 0:00:14.8]} 41. Kc1 {[%clk 0:00:02.5]} 41... exf4 {[%clk
0:00:10.4]} 42. Rd4 {[%clk 0:00:03.1]} 42... f3 {[%clk 0:00:10.8]} 43. Rxa4
{[%clk 0:00:02.8]} 43... Re6 {[%clk 0:00:06.8]} 44. Rf4 {[%clk 0:00:03.4]} 44...
Re1+ {[%clk 0:00:06.2]} 45. Kd2 {[%clk 0:00:03.5]} 45... Rg1 {[%clk 0:00:06.1]}
46. Rxf3 {[%clk 0:00:03.2]} 46... Rxg4 {[%clk 0:00:06]} 47. Re3+ {[%clk
0:00:03.7]} 47... Kd7 {[%clk 0:00:05.9]} 48. Rb3 {[%clk 0:00:04.6]} 48... Kc6
{[%clk 0:00:02.9]} 49. Rc3+ {[%clk 0:00:04]} 49... Kd6 {[%clk 0:00:03.4]} 50.
Rd3+ {[%clk 0:00:04.1]} 50... Ke6 {[%clk 0:00:03.8]} 51. Rb3 {[%clk 0:00:03.3]}
51... Rg5 {[%clk 0:00:03.8]} 52. Rb6+ {[%clk 0:00:03.7]} 52... Kf7 {[%clk
0:00:03.4]} 53. Rb7+ {[%clk 0:00:03.8]} 53... Kg8 {[%clk 0:00:03.9]} 54. a4
{[%clk 0:00:04.2]} 54... Rxh5 {[%clk 0:00:04.2]} 55. Rb5 {[%clk 0:00:03.5]}
55... Rh1 {[%clk 0:00:03.9]} 56. c4 {[%clk 0:00:03.9]} 56... Ra1 {[%clk
0:00:04.3]} 57. a5 {[%clk 0:00:04.1]} 57... Kf7 {[%clk 0:00:04.4]} 58. Rb7+
{[%clk 0:00:03.6]} 58... Kg6 {[%clk 0:00:04.8]} 59. Ra7 {[%clk 0:00:03.9]} 59...
h5 {[%clk 0:00:04.8]} 60. c5 {[%clk 0:00:04.5]} 60... h4 {[%clk 0:00:04.1]} 61.
c6 {[%clk 0:00:05]} 61... Ra2+ {[%clk 0:00:03]} 62. Kd3 {[%clk 0:00:04.8]} 62...
Ra3+ {[%clk 0:00:02.7]} 63. Kc2 {[%clk 0:00:04.1]} 63... Ra2+ {[%clk 0:00:01.7]}
64. Kb3 {[%clk 0:00:04.2]} 64... Ra1 {[%clk 0:00:02.4]} 65. c7 {[%clk
0:00:04.6]} 65... Rc1 {[%clk 0:00:02.7]} 66. Kb2 {[%clk 0:00:03.5]} 66... h3
{[%clk 0:00:03.2]} 67. Kxc1 {[%clk 0:00:02.8]} 67... h2 {[%clk 0:00:04.1]} 68.
c8=Q {[%clk 0:00:02.6]} 68... h1=Q+ {[%clk 0:00:05]} 69. Kb2 {[%clk 0:00:02.9]}
69... Qg2+ {[%clk 0:00:05.9]} 70. Kb3 {[%clk 0:00:03.3]} 70... Qf3+ {[%clk
0:00:06.3]} 71. Qc3 {[%clk 0:00:03.6]} 71... Qd5+ {[%clk 0:00:05.8]} 72. Qc4
{[%clk 0:00:04.1]} 72... Qd1+ {[%clk 0:00:05.5]} 73. Kb4 {[%clk 0:00:04.7]}
73... Qd2+ {[%clk 0:00:05.3]} 74. Kb5 {[%clk 0:00:04.7]} 74... Qg5+ {[%clk
0:00:01.9]} 75. Qc5 {[%clk 0:00:05.2]} 75... Qg2 {[%clk 0:00:02.6]} 76. Rc7
{[%clk 0:00:05]} 76... Qb2+ {[%clk 0:00:02.5]} 77. Kc6 {[%clk 0:00:05.2]} 77...
Qe2 {[%clk 0:00:03.4]} 78. a6 {[%clk 0:00:04.5]} 78... Qxa6+ {[%clk 0:00:02.7]}
79. Kd7 {[%clk 0:00:05]} 79... Qd3+ {[%clk 0:00:03]} 80. Kc8 {[%clk 0:00:05.3]}
80... Qf5+ {[%clk 0:00:02.9]} 81. Qxf5+ {[%clk 0:00:04.7]} 81... Kxf5 {[%clk
0:00:03.8]} 82. Rxg7 {[%clk 0:00:04.1]} 82... Ke4 {[%clk 0:00:04.7]} 83. Kd7
{[%clk 0:00:04.6]} 83... f5 {[%clk 0:00:05.6]} 84. Re7+ {[%clk 0:00:04.4]} 84...
Kd3 {[%clk 0:00:05.3]} 85. Ke6 {[%clk 0:00:04.2]} 85... f4 {[%clk 0:00:05.5]}
86. Rf7 {[%clk 0:00:03.1]} 86... Ke4 {[%clk 0:00:05.4]} 87. Ra7 {[%clk
0:00:02.7]} 87... f3 {[%clk 0:00:05.5]} 88. Ra4+ {[%clk 0:00:03.6]} 88... Ke3
{[%clk 0:00:06]} 89. Ke5 {[%clk 0:00:04]} 89... f2 {[%clk 0:00:06.1]} 90. Ra3+
{[%clk 0:00:01.4]} 90... Ke2 {[%clk 0:00:06.4]} 91. Ra2+ {[%clk 0:00:01.8]}
91... Kf3 {[%clk 0:00:06.7]} 92. Ra3+ {[%clk 0:00:02.1]} 92... Kg2 {[%clk
0:00:07]} 93. Ra2 {[%clk 0:00:02.6]} 93... Kg1 {[%clk 0:00:07.2]} 94. Rxf2
{[%clk 0:00:02.7]} 94... Kxf2 {[%clk 0:00:08.1]} 1/2-1/2

[Event "*** Titled Tuesday Blitz"]
[Site "Chess.com"]
[Date "2020.10.27"]
[Round "4"]
[White "venus02"]
[Black "sjam6687"]
[Result "1/2-1/2"]
[WhiteElo "2512"]
[BlackElo "2691"]
[TimeControl "180+1"]
[EndTime "10:42:40 PDT"]
[Termination "Game drawn - insufficient material"]

1. d4 {[%clk 0:03:00.9]} 1... d5 {[%clk 0:02:59.7]} 2. c4 {[%clk 0:02:58.9]}
2... c6 {[%clk 0:03:00.1]} 3. Nf3 {[%clk 0:02:58.4]} 3... Nf6 {[%clk 0:03:00.5]}
4. Nc3 {[%clk 0:02:58.5]} 4... dxc4 {[%clk 0:02:58.7]} 5. a4 {[%clk 0:02:53.5]}
5... Bf5 {[%clk 0:02:59]} 6. e3 {[%clk 0:02:52.2]} 6... e6 {[%clk 0:02:58.8]} 7.
Bxc4 {[%clk 0:02:52]} 7... Bb4 {[%clk 0:02:58.6]} 8. O-O {[%clk 0:02:51.5]} 8...
O-O {[%clk 0:02:58.5]} 9. Qe2 {[%clk 0:02:50.4]} 9... Ne4 {[%clk 0:02:54.4]} 10.
Nxe4 {[%clk 0:02:46.6]} 10... Bxe4 {[%clk 0:02:53.8]} 11. Ne5 {[%clk 0:02:43.4]}
11... Nd7 {[%clk 0:02:53.6]} 12. Nxd7 {[%clk 0:02:39.1]} 12... Qxd7 {[%clk
0:02:53.6]} 13. Bd2 {[%clk 0:02:34.5]} 13... Bxd2 {[%clk 0:02:50.8]} 14. Qxd2
{[%clk 0:02:34.6]} 14... Rfd8 {[%clk 0:02:50.7]} 15. Qb4 {[%clk 0:02:32.7]}
15... a5 {[%clk 0:02:50.7]} 16. Qc3 {[%clk 0:02:31.4]} 16... Bd5 {[%clk
0:02:50.4]} 17. b3 {[%clk 0:02:28.9]} 17... Bxc4 {[%clk 0:02:50.3]} 18. bxc4
{[%clk 0:02:29]} 18... c5 {[%clk 0:02:50.5]} 19. dxc5 {[%clk 0:02:27.8]} 19...
Qe7 {[%clk 0:02:49.4]} 20. Rfb1 {[%clk 0:02:25.2]} 20... Rdc8 {[%clk 0:02:47.5]}
21. Rb5 {[%clk 0:02:18.5]} 21... Rxc5 {[%clk 0:02:45.6]} 22. Qa3 {[%clk
0:02:14.8]} 22... Rac8 {[%clk 0:02:43.1]} 23. h3 {[%clk 0:02:08.3]} 23... Qc7
{[%clk 0:02:31.3]} 24. Rab1 {[%clk 0:01:56.6]} 24... Rxc4 {[%clk 0:02:28.8]} 25.
Rxb7 {[%clk 0:01:53.6]} 25... Qe5 {[%clk 0:02:24.2]} 26. R7b5 {[%clk 0:01:37.4]}
26... Qc7 {[%clk 0:02:21.7]} 27. Rb7 {[%clk 0:01:30.5]} 27... Qd8 {[%clk
0:02:20.9]} 28. Qe7 {[%clk 0:01:09.1]} 28... Qxe7 {[%clk 0:02:13.5]} 29. Rxe7
{[%clk 0:01:09]} 29... Rxa4 {[%clk 0:02:13.1]} 30. Rbb7 {[%clk 0:01:08.9]} 30...
Rf8 {[%clk 0:02:11]} 31. g4 {[%clk 0:01:08.5]} 31... g6 {[%clk 0:02:08.7]} 32.
Ra7 {[%clk 0:01:07.5]} 32... Ra2 {[%clk 0:02:01.2]} 33. Reb7 {[%clk 0:01:03.5]}
33... a4 {[%clk 0:01:59.3]} 34. Kg2 {[%clk 0:01:00.6]} 34... g5 {[%clk
0:01:57.6]} 35. Rb4 {[%clk 0:00:58.9]} 35... Kg7 {[%clk 0:01:55.9]} 36. Rbxa4
{[%clk 0:00:57]} 36... Rxa4 {[%clk 0:01:53.8]} 37. Rxa4 {[%clk 0:00:57]} 37...
Rb8 {[%clk 0:01:54.7]} 38. Ra5 {[%clk 0:00:57]} 38... Kg6 {[%clk 0:01:51.6]} 39.
Kg3 {[%clk 0:00:57.1]} 39... Rb2 {[%clk 0:01:49.5]} 40. Ra6 {[%clk 0:00:54.4]}
40... h5 {[%clk 0:01:47]} 41. Ra5 {[%clk 0:00:48.8]} 41... h4+ {[%clk
0:01:44.4]} 42. Kf3 {[%clk 0:00:48.9]} 42... Rb4 {[%clk 0:01:39.7]} 43. Ra6
{[%clk 0:00:48.1]} 43... Rb5 {[%clk 0:01:38.2]} 44. Rc6 {[%clk 0:00:47.6]} 44...
Kf6 {[%clk 0:01:36.2]} 45. Ra6 {[%clk 0:00:46.8]} 45... Ke5 {[%clk 0:01:33.3]}
46. Ra7 {[%clk 0:00:37.7]} 46... f5 {[%clk 0:01:29.6]} 47. Rg7 {[%clk
0:00:37.3]} 47... Kf6 {[%clk 0:01:24.2]} 48. Rg8 {[%clk 0:00:37.2]} 48... Ra5
{[%clk 0:01:24.2]} 49. Rf8+ {[%clk 0:00:36.6]} 49... Kg7 {[%clk 0:01:20.9]} 50.
Re8 {[%clk 0:00:36.7]} 50... Kf7 {[%clk 0:01:20.9]} 51. Rh8 {[%clk 0:00:36.6]}
51... Ra2 {[%clk 0:01:19]} 52. Rh6 {[%clk 0:00:34.8]} 52... Ra8 {[%clk
0:01:15.2]} 53. Kg2 {[%clk 0:00:21.6]} 53... Re8 {[%clk 0:01:06]} 54. f4 {[%clk
0:00:20.4]} 54... gxf4 {[%clk 0:01:01.8]} 55. exf4 {[%clk 0:00:20.5]} 55... Ra8
{[%clk 0:01:01.2]} 56. Rxh4 {[%clk 0:00:18.1]} 56... Ra2+ {[%clk 0:00:58.3]} 57.
Kf3 {[%clk 0:00:18]} 57... Ra3+ {[%clk 0:00:58.3]} 58. Kf2 {[%clk 0:00:18.1]}
58... Ra2+ {[%clk 0:00:58.3]} 59. Ke3 {[%clk 0:00:18.4]} 59... Ra3+ {[%clk
0:00:56.6]} 60. Ke2 {[%clk 0:00:18]} 60... Ra2+ {[%clk 0:00:54.7]} 61. Kd3
{[%clk 0:00:17.7]} 61... Ra3+ {[%clk 0:00:54.4]} 62. Kd4 {[%clk 0:00:17.3]}
62... Ra4+ {[%clk 0:00:54.7]} 63. Ke3 {[%clk 0:00:17.2]} 63... Ra3+ {[%clk
0:00:54.8]} 64. Ke2 {[%clk 0:00:12.8]} 64... Ra2+ {[%clk 0:00:53.2]} 65. Kd3
{[%clk 0:00:13.1]} 65... Ra3+ {[%clk 0:00:53.1]} 66. Kc2 {[%clk 0:00:12.4]}
66... fxg4 {[%clk 0:00:50.9]} 67. hxg4 {[%clk 0:00:11.2]} 67... Ra4 {[%clk
0:00:51.8]} 68. g5 {[%clk 0:00:10.7]} 68... e5 {[%clk 0:00:51.9]} 69. Rh7+
{[%clk 0:00:08.6]} 69... Kg8 {[%clk 0:00:51.6]} 70. Rh6 {[%clk 0:00:08.7]} 70...
Rxf4 {[%clk 0:00:48.8]} 71. Kd3 {[%clk 0:00:08.1]} 71... Rg4 {[%clk 0:00:48.9]}
72. Ke3 {[%clk 0:00:07.4]} 72... Rxg5 {[%clk 0:00:48.3]} 73. Ke4 {[%clk
0:00:07.6]} 73... Kg7 {[%clk 0:00:45.2]} 74. Re6 {[%clk 0:00:07.3]} 74... Rg1
{[%clk 0:00:42.7]} 75. Rxe5 {[%clk 0:00:07.1]} 75... Kf6 {[%clk 0:00:41.5]} 76.
Rf5+ {[%clk 0:00:06.8]} 76... Ke6 {[%clk 0:00:42.1]} 77. Re5+ {[%clk 0:00:07.2]}
77... Kd6 {[%clk 0:00:40.4]} 78. Rd5+ {[%clk 0:00:07.5]} 78... Kc6 {[%clk
0:00:41]} 79. Rf5 {[%clk 0:00:07.5]} 79... Re1+ {[%clk 0:00:40.2]} 80. Kf3
{[%clk 0:00:07.5]} 80... Kd6 {[%clk 0:00:39.9]} 81. Kf4 {[%clk 0:00:07.3]} 81...
Rf1+ {[%clk 0:00:39.5]} 82. Ke3 {[%clk 0:00:07.3]} 82... Re1+ {[%clk 0:00:38.9]}
83. Kf4 {[%clk 0:00:07.5]} 83... Re8 {[%clk 0:00:39.8]} 84. Rf6+ {[%clk
0:00:07.2]} 84... Ke7 {[%clk 0:00:38.9]} 85. Ra6 {[%clk 0:00:06.8]} 85... Rf8+
{[%clk 0:00:38.1]} 86. Ke5 {[%clk 0:00:06.6]} 86... Rf1 {[%clk 0:00:38.4]} 87.
Ra7+ {[%clk 0:00:06.7]} 87... Kd8 {[%clk 0:00:38.2]} 88. Kd6 {[%clk 0:00:07]}
88... Rd1+ {[%clk 0:00:38.1]} 89. Kc6 {[%clk 0:00:07.1]} 89... Ke8 {[%clk
0:00:37.9]} 90. Ra8+ {[%clk 0:00:06.3]} 90... Ke7 {[%clk 0:00:38.2]} 91. Ra7+
{[%clk 0:00:06.6]} 91... Ke6 {[%clk 0:00:38.3]} 92. Kc5 {[%clk 0:00:06.2]} 92...
Rc1+ {[%clk 0:00:38.1]} 93. Kd4 {[%clk 0:00:06.2]} 93... Rd1+ {[%clk 0:00:37.5]}
94. Ke3 {[%clk 0:00:06.2]} 94... Rb1 {[%clk 0:00:37.7]} 95. Kd2 {[%clk 0:00:06]}
95... Rb3 {[%clk 0:00:36.1]} 96. Kc2 {[%clk 0:00:06]} 96... Rh3 {[%clk
0:00:35.5]} 97. Ra5 {[%clk 0:00:05.8]} 97... Kd6 {[%clk 0:00:35.4]} 98. Rg5
{[%clk 0:00:05.5]} 98... Rh2+ {[%clk 0:00:35.2]} 99. Kd3 {[%clk 0:00:05.5]}
99... Rh3+ {[%clk 0:00:36.1]} 100. Ke2 {[%clk 0:00:05.6]} 100... Rh8 {[%clk
0:00:36.7]} 101. Kd2 {[%clk 0:00:05.1]} 101... Ke6 {[%clk 0:00:36.4]} 102. Rb5
{[%clk 0:00:04.3]} 102... Kf6 {[%clk 0:00:36.5]} 103. Ra5 {[%clk 0:00:04.4]}
103... Rd8+ {[%clk 0:00:36.7]} 104. Kc3 {[%clk 0:00:03.6]} 104... Ke6 {[%clk
0:00:37.6]} 105. Kb3 {[%clk 0:00:03.7]} 105... Kd6 {[%clk 0:00:37.8]} 106. Kc3
{[%clk 0:00:03.9]} 106... Rb8 {[%clk 0:00:37.2]} 107. Ra4 {[%clk 0:00:03.8]}
107... Rb1 {[%clk 0:00:36.9]} 108. Rd4+ {[%clk 0:00:04]} 108... Ke5 {[%clk
0:00:37.3]} 109. Rc4 {[%clk 0:00:04.4]} 109... Rb8 {[%clk 0:00:36.7]} 110. Kd3
{[%clk 0:00:04.5]} 110... Rd8+ {[%clk 0:00:36]} 111. Kc3 {[%clk 0:00:04.5]}
111... Rh8 {[%clk 0:00:36.2]} 112. Rb4 {[%clk 0:00:04.8]} 112... Kd5 {[%clk
0:00:35.2]} 113. Kb3 {[%clk 0:00:05]} 113... Kc6 {[%clk 0:00:36.1]} 114. Rc4+
{[%clk 0:00:05.2]} 114... Kd5 {[%clk 0:00:35.1]} 115. Rb4 {[%clk 0:00:05.4]}
115... Rh3+ {[%clk 0:00:35.2]} 116. Kc2 {[%clk 0:00:05.7]} 116... Kc5 {[%clk
0:00:35.5]} 117. Rg4 {[%clk 0:00:05.6]} 117... Rh2+ {[%clk 0:00:35.2]} 118. Kd3
{[%clk 0:00:05.7]} 118... Rh8 {[%clk 0:00:36.1]} 119. Ke3 {[%clk 0:00:06]}
119... Kd5 {[%clk 0:00:35.5]} 120. Kf3 {[%clk 0:00:06.3]} 120... Re8 {[%clk
0:00:33.1]} 121. Rf4 {[%clk 0:00:06.5]} 121... Kd6 {[%clk 0:00:32.3]} 122. Re4
{[%clk 0:00:06.5]} 122... Re5 {[%clk 0:00:32.8]} 123. Rxe5 {[%clk 0:00:06.3]}
123... Kxe5 {[%clk 0:00:33.7]} 1/2-1/2

[Event "*** Titled Tuesday Blitz"]
[Site "Chess.com"]
[Date "2020.10.27"]
[Round "5"]
[White "Semetey"]
[Black "Bodnar_Mykola"]
[Result "1-0"]
[WhiteElo "2560"]
[BlackElo "2373"]
[TimeControl "180+1"]
[EndTime "10:50:43 PDT"]
[Termination "Semetey won by resignation"]

1. e4 {[%clk 0:03:00.9]} 1... c5 {[%clk 0:02:59.4]} 2. Nc3 {[%clk 0:03:01]} 2...
Nc6 {[%clk 0:02:58.9]} 3. Bb5 {[%clk 0:03:01.1]} 3... Nd4 {[%clk 0:02:57.8]} 4.
Nf3 {[%clk 0:03:00.9]} 4... Nxb5 {[%clk 0:02:57]} 5. Nxb5 {[%clk 0:03:01.4]}
5... d5 {[%clk 0:02:52.7]} 6. exd5 {[%clk 0:02:58.2]} 6... Qxd5 {[%clk
0:02:53.6]} 7. Nc7+ {[%clk 0:02:57.9]} 7... Kd8 {[%clk 0:02:13]} 8. Nxd5 {[%clk
0:02:58.8]} 8... e6 {[%clk 0:02:13.5]} 9. Nc3 {[%clk 0:02:45.8]} 9... Be7 {[%clk
0:02:08]} 10. d4 {[%clk 0:02:45.2]} 10... cxd4 {[%clk 0:02:07.9]} 11. Qxd4+
{[%clk 0:02:44.7]} 11... Ke8 {[%clk 0:02:05.4]} 12. Qxg7 {[%clk 0:02:45.6]}
12... Bf6 {[%clk 0:02:05.1]} 13. Qg3 {[%clk 0:02:43.6]} 13... Bd7 {[%clk
0:02:05.7]} 14. Ne4 {[%clk 0:02:39.4]} 1-0

[Event "*** Titled Tuesday Blitz"]
[Site "Chess.com"]
[Date "2020.10.27"]
[Round "5"]
[White "Volodar_Murzin"]
[Black "bsnsun"]
[Result "1/2-1/2"]
[WhiteElo "2612"]
[BlackElo "2456"]
[TimeControl "180+1"]
[EndTime "10:52:00 PDT"]
[Termination "Game drawn by repetition"]

1. e4 {[%clk 0:03:00.9]} 1... c5 {[%clk 0:02:51.4]} 2. Nf3 {[%clk 0:02:59.9]}
2... d6 {[%clk 0:02:50.2]} 3. Bb5+ {[%clk 0:02:58.9]} 3... Bd7 {[%clk
0:02:46.8]} 4. Bxd7+ {[%clk 0:02:56.5]} 4... Qxd7 {[%clk 0:02:47.1]} 5. O-O
{[%clk 0:02:56]} 5... Nc6 {[%clk 0:02:45.3]} 6. Re1 {[%clk 0:02:53.5]} 6... Nf6
{[%clk 0:02:36.8]} 7. c3 {[%clk 0:02:53.2]} 7... e6 {[%clk 0:02:32.7]} 8. d4
{[%clk 0:02:52.1]} 8... cxd4 {[%clk 0:02:32.9]} 9. cxd4 {[%clk 0:02:53]} 9... d5
{[%clk 0:02:33.4]} 10. e5 {[%clk 0:02:52]} 10... Ne4 {[%clk 0:02:33.5]} 11. Nbd2
{[%clk 0:02:50.9]} 11... Nxd2 {[%clk 0:02:30.7]} 12. Bxd2 {[%clk 0:02:51.8]}
12... Bb4 {[%clk 0:02:30.3]} 13. Rc1 {[%clk 0:02:50.4]} 13... Bxd2 {[%clk
0:02:26.7]} 14. Qxd2 {[%clk 0:02:51.3]} 14... O-O {[%clk 0:02:26.8]} 15. Rc3
{[%clk 0:02:45.4]} 15... h6 {[%clk 0:02:23]} 16. h4 {[%clk 0:02:44.7]} 16... Ne7
{[%clk 0:02:13.1]} 17. h5 {[%clk 0:02:40.5]} 17... Rac8 {[%clk 0:02:11.6]} 18.
Rec1 {[%clk 0:02:40.1]} 18... Rxc3 {[%clk 0:02:03.2]} 19. Rxc3 {[%clk 0:02:41]}
19... Rc8 {[%clk 0:02:03]} 20. g4 {[%clk 0:02:32.3]} 20... Rxc3 {[%clk
0:02:01.4]} 21. Qxc3 {[%clk 0:02:29.9]} 21... Qc6 {[%clk 0:02:01.6]} 22. Qxc6
{[%clk 0:02:27]} 22... Nxc6 {[%clk 0:02:00.2]} 23. a3 {[%clk 0:02:23.5]} 23...
Na5 {[%clk 0:01:58]} 24. Nd2 {[%clk 0:02:22.3]} 24... Nc6 {[%clk 0:01:50.7]} 25.
Nf3 {[%clk 0:02:18.7]} 25... Na5 {[%clk 0:01:50.2]} 26. Nd2 {[%clk 0:02:16.8]}
26... Nc6 {[%clk 0:01:50.3]} 27. Nf3 {[%clk 0:02:08.4]} 1/2-1/2

[Event "*** Titled Tuesday Blitz"]
[Site "Chess.com"]
[Date "2020.10.27"]
[Round "5"]
[White "mishanick"]
[Black "lelya96"]
[Result "1-0"]
[WhiteElo "2984"]
[BlackElo "2208"]
[TimeControl "180+1"]
[EndTime "10:52:57 PDT"]
[Termination "mishanick won by resignation"]

1. d4 {[%clk 0:03:00.9]} 1... Nf6 {[%clk 0:02:58]} 2. c4 {[%clk 0:02:56]} 2...
e6 {[%clk 0:02:57.6]} 3. g3 {[%clk 0:02:54.9]} 3... Bb4+ {[%clk 0:02:55.1]} 4.
Bd2 {[%clk 0:02:54.7]} 4... Qe7 {[%clk 0:02:54.2]} 5. Bg2 {[%clk 0:02:54.3]}
5... Nc6 {[%clk 0:02:52.1]} 6. Nf3 {[%clk 0:02:54]} 6... Bxd2+ {[%clk
0:02:47.4]} 7. Qxd2 {[%clk 0:02:53.8]} 7... Qb4 {[%clk 0:02:24.4]} 8. b3 {[%clk
0:02:44.4]} 8... Qxd2+ {[%clk 0:02:20.4]} 9. Nbxd2 {[%clk 0:02:43.9]} 9... d6
{[%clk 0:02:16.6]} 10. e4 {[%clk 0:02:43.8]} 10... e5 {[%clk 0:02:15.4]} 11. d5
{[%clk 0:02:44.1]} 11... Nb8 {[%clk 0:02:09.4]} 12. Ke2 {[%clk 0:02:40.2]} 12...
a5 {[%clk 0:02:08.4]} 13. Ne1 {[%clk 0:02:40.7]} 13... Bd7 {[%clk 0:02:05.4]}
14. Nd3 {[%clk 0:02:41.1]} 14... Na6 {[%clk 0:02:04]} 15. f4 {[%clk 0:02:41.2]}
15... Bg4+ {[%clk 0:01:15]} 16. Kf2 {[%clk 0:02:39.8]} 16... Nd7 {[%clk
0:01:14.8]} 17. h3 {[%clk 0:02:39]} 17... Bh5 {[%clk 0:00:56.9]} 18. g4 {[%clk
0:02:38.8]} 18... Bxg4 {[%clk 0:00:50.6]} 19. hxg4 {[%clk 0:02:38.7]} 19... exf4
{[%clk 0:00:50.6]} 20. Nxf4 {[%clk 0:02:39.2]} 20... Ne5 {[%clk 0:00:50.1]} 21.
Kg3 {[%clk 0:02:39.2]} 21... Nc5 {[%clk 0:00:49.3]} 22. Nh5 {[%clk 0:02:39.3]}
22... g6 {[%clk 0:00:41.3]} 23. Nf6+ {[%clk 0:02:37]} 23... Ke7 {[%clk
0:00:41.2]} 24. Nxh7 {[%clk 0:02:37.5]} 24... f6 {[%clk 0:00:32.2]} 25. Raf1
{[%clk 0:02:36.5]} 25... Ned7 {[%clk 0:00:26.8]} 26. g5 {[%clk 0:02:34.3]} 1-0

[Event "*** Titled Tuesday Blitz"]
[Site "Chess.com"]
[Date "2020.10.27"]
[Round "5"]
[White "LogoCzar"]
[Black "LubovMarkelova"]
[Result "0-1"]
[WhiteElo "2368"]
[BlackElo "2227"]
[TimeControl "180+1"]
[EndTime "10:53:03 PDT"]
[Termination "LubovMarkelova won by checkmate"]

1. d4 {[%clk 0:03:00.9]} 1... Nf6 {[%clk 0:02:58]} 2. e3 {[%clk 0:02:59.6]} 2...
c5 {[%clk 0:02:56.9]} 3. Nf3 {[%clk 0:02:58.7]} 3... g6 {[%clk 0:02:54.6]} 4. b3
{[%clk 0:02:57]} 4... cxd4 {[%clk 0:02:53.2]} 5. Nxd4 {[%clk 0:02:54.6]} 5...
Bg7 {[%clk 0:02:50.3]} 6. Bb2 {[%clk 0:02:54.9]} 6... O-O {[%clk 0:02:50.7]} 7.
Be2 {[%clk 0:02:55.2]} 7... Nc6 {[%clk 0:02:30.2]} 8. c4 {[%clk 0:02:55]} 8...
Nxd4 {[%clk 0:02:30.1]} 9. Qxd4 {[%clk 0:02:52.7]} 9... Ne8 {[%clk 0:02:18.4]}
10. Qd2 {[%clk 0:02:50.5]} 10... Bxb2 {[%clk 0:02:16.7]} 11. Qxb2 {[%clk
0:02:51.4]} 11... Nf6 {[%clk 0:02:17]} 12. Nc3 {[%clk 0:02:51.2]} 12... b6
{[%clk 0:02:12.5]} 13. Bf3 {[%clk 0:02:50.4]} 13... Rb8 {[%clk 0:02:12]} 14. h4
{[%clk 0:02:50.3]} 14... h5 {[%clk 0:02:10.9]} 15. Nd5 {[%clk 0:02:48.5]} 15...
Nxd5 {[%clk 0:02:07.7]} 16. cxd5 {[%clk 0:02:46]} 16... Ba6 {[%clk 0:02:06]} 17.
g4 {[%clk 0:02:45.1]} 17... hxg4 {[%clk 0:01:48.5]} 18. Bxg4 {[%clk 0:02:45]}
18... f5 {[%clk 0:01:40.3]} 19. Be2 {[%clk 0:02:44.4]} 19... Bb7 {[%clk
0:01:33.5]} 20. Rd1 {[%clk 0:02:40.9]} 20... e6 {[%clk 0:01:31.8]} 21. dxe6
{[%clk 0:02:37.9]} 21... Bxh1 {[%clk 0:01:26.4]} 22. Rxd7 {[%clk 0:02:35.6]}
22... Qf6 {[%clk 0:01:25.6]} 23. Qa3 {[%clk 0:02:33.2]} 23... Rbd8 {[%clk
0:01:08.6]} 24. Rxd8 {[%clk 0:02:17.5]} 24... Rxd8 {[%clk 0:01:06.3]} 25. Bc4
{[%clk 0:02:15.9]} 25... Qc3+ {[%clk 0:00:52.1]} 26. Kf1 {[%clk 0:02:04.2]}
26... Rd1+ {[%clk 0:00:51]} 27. Ke2 {[%clk 0:02:02.4]} 27... Qd2# {[%clk
0:00:49.9]} 0-1